[Event "44th Open Sitges 2018"]
[Site "Sitges"]
[Date "2018.07.26"]
[Round "5"]
[White "Neelash, Saha"]
[Black "Alarcon Casellas, Rolando"]
[Result "0-1"]
[ECO "D30"]
[WhiteElo "2319"]
[BlackElo "2389"]
[Annotator "NA"]
[PlyCount "54"]
[EventDate "2018.07.22"]
[EventType "swiss"]
[EventCountry "ESP"]
[SourceTitle "playchess.com"]
[Source "ChessBase"]
[SourceQuality "1"]
[TimeControl "40/5400+30:1800+30"]

1. d4 {[%emt 0:00:02]} d5 {[%emt 0:19:23]} 2. c4 {[%emt 0:00:06]} c6 {[%emt 0:00:27]} 3. Nf3 {[%emt 0:00:04]} Nf6 {[%emt 0:00:14]} 4. e3 {[%emt 0:00:04]} e6 {[%emt 0:00:21]} 5. b3 {[%emt 0:00:33]} Nbd7 {[%emt 0:01:55]} 6. Bb2 {[%emt 0:00:48]} Bd6 {[%emt 0:01:07]} 7. Nbd2 {[%emt 0:00:51]} O-O {[%emt 0:00:58]} 8. Qc2 {[%emt 0:00:06]} Qe7 {[%emt 0:00:19]} 9. Bd3 {[%emt 0:01:36]} e5 {[%emt 0:03:39]} 10. cxd5 {[%emt 0:00:06]} cxd5 {[%emt 0:01:10]} 11. dxe5 {[%emt 0:00:05]} Nxe5 {[%emt 0:00:05]} 12. Nxe5 {[%emt 0:00:06]} Bxe5 {[%emt 0:00:04]} 13. Nf3 {[%emt 0:00:08]} Qb4+ {[%emt 0:00:49]} 14. Nd2 {[%emt 0:02:23]} Bxb2 {[%emt 0:07:29]} 15. Qxb2 {[%emt 0:00:08]} d4 {[%emt 0:01:32]} 16. a3 {[%emt 0:05:57]} Qa5 {[%emt 0:05:38]} 17. b4 {[%emt 0:04:10]} Qg5 {[%emt 0:01:07]} 18. Qxd4 {[%emt 0:03:53]} Qxg2 {[%emt 0:00:32]} 19. O-O-O {[%emt 0:00:06]} Bg4 {[%emt 0:03:56]} 20. f3 {[%emt 0:23:46]} Rfd8 {[%emt 0:06:27]} 21. Qc3 {[%emt 0:00:12]} Rac8 {[%emt 0:03:01]} 22. Bc4 {[%emt 0:00:09]} Rxd2 {[%emt 0:01:59]} 23. fxg4 {[%emt 0:00:05]} Ra2 {[%emt 0:09:30]} 24. Kb1 {[%emt 0:01:00]} Ne4 {[%emt 0:05:24]} 25. Qc1 {[%emt 0:04:48]} h6 {[%emt 0:08:48]} 26. Rd4 {[%emt 0:00:49]} b5 {[%emt 0:02:46]} 27. Rg1 {[%emt 0:03:25]} Qxg1 {[%emt 0:00:24]} 0-1

[Event "44th Open Sitges 2018"]
[Site "Sitges"]
[Date "2018.07.26"]
[Round "5"]
[White "Mitrabha, Guha"]
[Black "Aguero Jimenez, Luis Lazaro"]
[Result "0-1"]
[ECO "A45"]
[WhiteElo "2299"]
[BlackElo "2473"]
[Annotator "ChessBase"]
[PlyCount "48"]
[EventDate "2018.07.22"]
[EventType "swiss"]
[EventCountry "ESP"]
[SourceTitle "playchess.com"]
[Source "ChessBase"]
[SourceQuality "1"]
[TimeControl "40/5400+30:1800+30"]

1. d4 {[%emt 0:00:00]} Nf6 {[%emt 0:00:00]} 2. Bf4 {[%emt 0:00:00]} g6 {[%emt 0:00:00]} 3. Nc3 {[%emt 0:00:00]} c5 {[%emt 0:01:38]} 4. dxc5 {[%emt 0:00:20]} Qa5 {[%emt 0:00:47]} 5. Qd2 {[%emt 0:00:15]} Bg7 {[%emt 0:04:52]} 6. e4 {[%emt 0:00:23]} O-O {[%emt 0:01:06]} 7. f3 {[%emt 0:15:08]} Qxc5 {[%emt 0:04:32]} 8. Nge2 {[%emt 0:00:34]} Nc6 {[%emt 0:00:39]} 9. Nc1 {[%emt 0:00:10]} Nd4 {[%emt 0:17:14]} 10. Nb3 {[%emt 0:06:20]} Nxb3 {[%emt 0:00:05]} 11. axb3 {[%emt 0:00:02]} b6 {[%emt 0:27:07]} 12. O-O-O {[%emt 0:06:31]} Bb7 {[%emt 0:02:18]} 13. g4 {[%emt 0:02:31]} Rfc8 {[%emt 0:00:59]} 14. Kb1 {[%emt 0:02:41]} d5 {[%emt 0:08:55]} 15. g5 {[%emt 0:04:36]} d4 {[%emt 0:17:59]} 16. Na4 {[%emt 0:01:35]} Nxe4 {[%emt 0:00:05]} 17. fxe4 {[%emt 0:00:09]} Qc6 {[%emt 0:00:03]} 18. c4 {[%emt 0:09:18]} e5 {[%emt 0:00:12]} 19. Bg3 {[%emt 0:00:30]} Qxe4+ {[%emt 0:03:53]} 20. Bd3 {[%emt 0:00:04]} Qg4 {[%emt 0:00:35]} 21. Rhg1 {[%emt 0:00:51]} Qe6 {[%emt 0:01:01]} 22. Be2 {[%emt 0:05:24]} b5 {[%emt 0:00:48]} 23. cxb5 {[%emt 0:05:37]} Qxb3 {[%emt 0:00:14]} 24. Qa5 {[%emt 0:00:10]} Bd5 {[%emt 0:03:03]} 0-1

[Event "44th Open Sitges 2018"]
[Site "Sitges"]
[Date "2018.07.26"]
[Round "5"]
[White "Jimenez Ortiz, Gonzalo"]
[Black "Mas Mestres, Jordi"]
[Result "1-0"]
[ECO "B35"]
[WhiteElo "1949"]
[BlackElo "1825"]
[Annotator "NA"]
[PlyCount "127"]
[EventDate "2018.07.22"]
[EventType "swiss"]
[EventCountry "ESP"]
[SourceTitle "playchess.com"]
[Source "ChessBase"]
[SourceQuality "1"]
[TimeControl "40/5400+30:1800+30"]

1. e4 {[%emt 0:00:25]} c5 {[%emt 0:00:12]} 2. Nf3 {[%emt 0:00:30]} g6 {[%emt 0:01:03]} 3. d4 {[%emt 0:00:24]} cxd4 {[%emt 0:00:09]} 4. Nxd4 {[%emt 0:00:20]} Nc6 {[%emt 0:00:59]} 5. Nc3 {[%emt 0:00:18]} Bg7 {[%emt 0:02:11]} 6. Be3 {[%emt 0:00:15]} Nf6 {[%emt 0:01:29]} 7. Bc4 {[%emt 0:00:27]} Qa5 {[%emt 0:01:56]} 8. O-O {[%emt 0:00:55]} O-O {[%emt 0:00:21]} 9. Nb3 {[%emt 0:02:21]} Qc7 {[%emt 0:05:44]} 10. Bg5 {[%emt 0:00:42]} d6 {[%emt 0:03:37]} 11. Bxf6 {[%emt 0:01:27]} exf6 {[%emt 0:00:07]} 12. Nd5 {[%emt 0:02:41]} Qd8 {[%emt 0:00:14]} 13. c3 {[%emt 0:04:04]} f5 {[%emt 0:01:15]} 14. exf5 {[%emt 0:08:08]} Bxf5 {[%emt 0:00:22]} 15. Qd2 {[%emt 0:01:08]} Ne5 {[%emt 0:09:59]} 16. Be2 {[%emt 0:01:07]} Rc8 {[%emt 0:06:08]} 17. Ne3 {[%emt 0:02:01]} Qh4 {[%emt 0:11:37]} 18. Nxf5 {[%emt 0:05:55]} gxf5 {[%emt 0:00:06]} 19. g3 {[%emt 0:13:36]} Qh3 {[%emt 0:01:23]} 20. f4 {[%emt 0:01:46]} Nc4 {[%emt 0:02:51]} 21. Bxc4 {[%emt 0:01:12]} Rxc4 {[%emt 0:00:01]} 22. Qg2 {[%emt 0:02:52]} Qxg2+ {[%emt 0:00:54]} 23. Kxg2 {[%emt 0:00:02]} Re4 {[%emt 0:00:09]} 24. Rad1 {[%emt 0:02:41]} Rfe8 {[%emt 0:00:58]} 25. Rxd6 {[%emt 0:03:07]} b5 {[%emt 0:02:29]} 26. Rf2 {[%emt 0:09:44]} b4 {[%emt 0:01:06]} 27. cxb4 {[%emt 0:00:29]} Rxb4 {[%emt 0:00:06]} 28. Rd5 {[%emt 0:00:42]} Ra8 {[%emt 0:02:00]} 29. Rxf5 {[%emt 0:04:08]} a5 {[%emt 0:00:38]} 30. Rxa5 {[%emt 0:01:07]} Rxa5 {[%emt 0:00:12]} 31. Nxa5 {[%emt 0:00:03]} Bxb2 {[%emt 0:00:08]} 32. Nc6 {[%emt 0:04:05]} Rb6 {[%emt 0:00:46]} 33. Re2 {[%emt 0:01:25]} Ba3 {[%emt 0:00:34]} 34. Ne5 {[%emt 0:01:19]} Rb4 {[%emt 0:02:18]} 35. Kf3 {[%emt 0:01:48]} Ra4 {[%emt 0:00:56]} 36. Kg4 {[%emt 0:06:02]} Bd6 {[%emt 0:00:38]} 37. Nf3 {[%emt 0:00:50]} Ra5 {[%emt 0:01:54]} 38. Kh3 {[%emt 0:03:43]} Kg7 {[%emt 0:00:38]} 39. Ne5 {[%emt 0:01:00]} Ra4 {[%emt 0:00:17]} 40. Rd2 {[%emt 0:00:00]} Bc7 {[%emt 0:00:00]} 41. Rc2 {[%emt 0:02:02]} Bd6 {[%emt 0:01:41]} 42. Nc4 {[%emt 0:03:16]} Bc5 {[%emt 0:03:46]} 43. Kg4 {[%emt 0:01:46]} Bd4 {[%emt 0:01:12]} 44. Kf3 {[%emt 0:00:39]} Ba7 {[%emt 0:01:52]} 45. Ke4 {[%emt 0:00:31]} Ra6 {[%emt 0:00:23]} 46. Kd5 {[%emt 0:00:40]} Bg1 {[%emt 0:01:20]} 47. Rg2 {[%emt 0:03:37]} Ba7 {[%emt 0:00:11]} 48. Ne5 {[%emt 0:00:49]} Bb8 {[%emt 0:01:39]} 49. Kc4 {[%emt 0:00:57]} Bd6 {[%emt 0:02:01]} 50. Kb5 {[%emt 0:03:14]} Ra8 {[%emt 0:00:48]} 51. a4 {[%emt 0:01:27]} Rb8+ {[%emt 0:01:23]} 52. Kc6 {[%emt 0:01:37]} Be7 {[%emt 0:00:33]} 53. Ra2 {[%emt 0:01:22]} f6 {[%emt 0:00:55]} 54. Nd7 {[%emt 0:01:38]} Rb3 {[%emt 0:00:07]} 55. Nb6 {[%emt 0:03:50]} Rc3+ {[%emt 0:00:30]} 56. Kd7 {[%emt 0:01:15]} Kf7 {[%emt 0:00:47]} 57. Nd5 {[%emt 0:00:48]} Rd3 {[%emt 0:00:05]} 58. Kc6 {[%emt 0:00:09]} Bd8 {[%emt 0:00:46]} 59. a5 {[%emt 0:01:15]} Rd4 {[%emt 0:00:32]} 60. a6 {[%emt 0:02:03]} Rc4+ {[%emt 0:01:10]} 61. Kd7 {[%emt 0:00:37]} Rd4 {[%emt 0:00:41]} 62. Kxd8 {[%emt 0:01:42]} Rxd5+ {[%emt 0:00:06]} 63. Kc7 {[%emt 0:00:20]} Rc5+ {[%emt 0:01:27]} 64. Kb6 {[%emt 0:00:21]} 1-0

[Event "44th Open Sitges 2018"]
[Site "Sitges"]
[Date "2018.07.26"]
[Round "6"]
[White "Kulkarni Bhakti"]
[Black "Argandona Riveiro, Inigo"]
[Result "1-0"]
[ECO "A55"]
[WhiteElo "2285"]
[BlackElo "2423"]
[Annotator "NA"]
[PlyCount "95"]
[EventDate "2018.07.22"]
[EventType "swiss"]
[EventCountry "ESP"]
[SourceTitle "playchess.com"]
[Source "ChessBase"]
[SourceQuality "1"]
[TimeControl "40/5400+30:1800+30"]

1. d4 {[%emt 0:00:10]} d6 {[%emt 0:00:05]} 2. c4 {[%emt 0:00:36]} e5 {[%emt 0:01:23]} 3. Nc3 {[%emt 0:01:04]} Nd7 {[%emt 0:00:23]} 4. Nf3 {[%emt 0:00:39]} Ngf6 {[%emt 0:00:08]} 5. e4 {[%emt 0:01:15]} Be7 {[%emt 0:00:05]} 6. Be2 {[%emt 0:00:49]} O-O {[%emt 0:00:03]} 7. O-O {[%emt 0:00:11]} Re8 {[%emt 0:00:02]} 8. Re1 {[%emt 0:00:56]} exd4 {[%emt 0:00:51]} 9. Nxd4 {[%emt 0:00:17]} Bf8 {[%emt 0:00:04]} 10. f3 {[%emt 0:00:53]} a5 {[%emt 0:01:08]} 11. Bf1 {[%emt 0:01:15]} Nc5 {[%emt 0:03:37]} 12. Be3 {[%emt 0:06:34]} c6 {[%emt 0:02:54]} 13. Qc2 {[%emt 0:03:11]} g6 {[%emt 0:13:31]} 14. b3 {[%emt 0:05:09]} Nfd7 {[%emt 0:14:44]} 15. a3 {[%emt 0:06:01]} Bg7 {[%emt 0:04:35]} 16. Rad1 {[%emt 0:03:08]} Ne5 {[%emt 0:11:10]} 17. Kh1 {[%emt 0:10:02]} Qh4 {[%emt 0:08:44]} 18. Bf2 {[%emt 0:11:33]} Qf6 {[%emt 0:05:21]} 19. b4 {[%emt 0:17:28]} axb4 {[%emt 0:00:05]} 20. axb4 {[%emt 0:00:04]} Ne6 {[%emt 0:00:55]} 21. Na4 {[%emt 0:01:27]} Nf4 {[%emt 0:05:06]} 22. Be3 {[%emt 0:10:05]} h5 {[%emt 0:16:43]} 23. Nb6 {[%emt 0:00:30]} Ra3 {[%emt 0:06:29]} 24. Qc1 {[%emt 0:01:13]} Rxe3 {[%emt 0:00:04]} 25. Qxe3 {[%emt 0:00:16]} h4 {[%emt 0:00:14]} 26. Ne2 {[%emt 0:04:43]} Nh5 {[%emt 0:01:55]} 27. Nxc8 {[%emt 0:00:33]} Rxc8 {[%emt 0:01:28]} 28. c5 {[%emt 0:00:46]} dxc5 {[%emt 0:00:50]} 29. bxc5 {[%emt 0:00:09]} Ng3+ {[%emt 0:01:47]} 30. hxg3 {[%emt 0:00:54]} hxg3 {[%emt 0:00:01]} 31. Qf4 {[%emt 0:00:12]} Qxf4 {[%emt 0:00:27]} 32. Nxf4 {[%emt 0:00:03]} Bh6 {[%emt 0:00:18]} 33. Nh3 {[%emt 0:01:41]} Bf8 {[%emt 0:00:20]} 34. f4 {[%emt 0:00:34]} Ng4 {[%emt 0:00:10]} 35. Rd3 {[%emt 0:01:03]} Bxc5 {[%emt 0:01:39]} 36. Rxg3 {[%emt 0:00:03]} Nf2+ {[%emt 0:00:10]} 37. Kh2 {[%emt 0:00:10]} Kg7 {[%emt 0:00:05]} 38. Rc1 {[%emt 0:00:22]} Be3 {[%emt 0:00:13]} 39. Rc2 {[%emt 0:00:52]} Rh8 {[%emt 0:00:53]} 40. Rf3 {[%emt 0:00:53]} Ng4+ {[%emt 0:00:32]} 41. Kg3 {[%emt 0:00:24]} f5 {[%emt 0:00:06]} 42. exf5 {[%emt 0:00:34]} gxf5 {[%emt 0:00:01]} 43. Bd3 {[%emt 0:01:05]} Kf6 {[%emt 0:00:17]} 44. Re2 {[%emt 0:00:11]} Rg8 {[%emt 0:06:05]} 45. Ng5 {[%emt 0:00:31]} Bxf4+ {[%emt 0:00:04]} 46. Kxf4 {[%emt 0:01:06]} Rxg5 {[%emt 0:00:02]} 47. Rg3 {[%emt 0:00:53]} Rh5 {[%emt 0:01:18]} 48. Bxf5 {[%emt 0:00:58]} 1-0

[Event "44th Open Sitges 2018"]
[Site "Sitges"]
[Date "2018.07.26"]
[Round "6"]
[White "Todts, Benny"]
[Black "Jimenez Ortiz, Gonzalo"]
[Result "1-0"]
[ECO "D43"]
[WhiteElo "1938"]
[BlackElo "1949"]
[Annotator "NA RC"]
[PlyCount "109"]
[EventDate "2018.07.22"]
[EventType "swiss"]
[EventCountry "ESP"]
[SourceTitle "playchess.com"]
[Source "ChessBase"]
[SourceQuality "1"]
[TimeControl "40/5400+30:1800+30"]

1. d4 {[%emt 0:00:03]} d5 {[%emt 0:00:17]} 2. c4 {[%emt 0:00:06]} c6 {[%emt 0:00:12]} 3. Nc3 {[%emt 0:00:05]} Nf6 {[%emt 0:00:41]} 4. Nf3 {[%emt 0:00:29]} e6 {[%emt 0:00:17]} 5. Bf4 {[%emt 0:00:05]} dxc4 {[%emt 0:01:33]} 6. a4 {[%emt 0:01:48] D43: Semi-Slav: 5 Bg5 h6} Bb4 {[%emt 0:02:48]} 7. e3 {[%emt 0:01:18]} (7. Qc2 b5 8. e4 Bb7 9. Be2 Nbd7 10. O-O a6 11. Rfd1 O-O 12. e5 Nd5 13. Ng5 g6 14. Nxd5 cxd5 {1-0 (51) Gazik,V (2479)-Miton,K (2584) Katowice 2017}) 7... b5 {[%emt 0:04:20]} 8. Qc2 {[%emt 0:00:52]} Bb7 {[%emt 0:05:31]} 9. Be2 {[%emt 0:00:42]} a6 {[%emt 0:03:16]} 10. O-O {[%emt 0:00:18]} Nbd7 {[%emt 0:06:09]} 11. Rad1 {[%emt 0:06:32]} O-O {[%emt 0:20:35]} 12. Bg5 $146 {[%emt 0:15:32]} ({Predecessor:} 12. e4 Qb6 13. Be3 c5 14. d5 Bxc3 15. dxe6 Qxe6 16. Qxc3 Nxe4 {0-1 (33) Cortes,M-Rollerblader13 Dos Hermanas 2003}) 12... Be7 {[%emt 0:05:32]} 13. e4 {[%emt 0:12:30]} h6 {[%emt 0:02:15]} 14. Bh4 {[%emt 0:01:36]} Re8 {[%emt 0:01:40]} 15. e5 {[%emt 0:01:33]} Nd5 {[%emt 0:05:14]} 16. Bxe7 {[%emt 0:00:09]} Qxe7 {[%emt 0:04:38]} 17. Ne4 {[%emt 0:00:40]} Red8 {[%emt 0:08:11]} 18. Nd6 {[%emt 0:03:06]} N7b6 {[%emt 0:00:42]} 19. a5 {[%emt 0:02:37]} Na4 {[%emt 0:04:30]} 20. Nd2 {[%emt 0:05:25]} c5 {[%emt 0:02:32]} 21. Bxc4 {[%emt 0:01:40]} Nb4 {[%emt 0:02:56]} 22. Qb3 {[%emt 0:00:48]} Nc6 {[%emt 0:01:52]} 23. Bxb5 {[%emt 0:01:17]} Nxa5 {[%emt 0:04:13]} 24. Qxa4 {[%emt 0:00:40]} axb5 {[%emt 0:00:17]} 25. Qxb5 {[%emt 0:02:31]} Ba6 {[%emt 0:00:37]} 26. Qxa5 {[%emt 0:00:14]} Bxf1 {[%emt 0:00:11]} 27. Qxc5 {[%emt 0:00:22]} Be2 {[%emt 0:02:35]} 28. Re1 {[%emt 0:02:29]} Qg5 {[%emt 0:02:06]} 29. N6e4 {[%emt 0:01:47]} Qh5 {[%emt 0:01:50]} 30. Ng3 {[%emt 0:00:26]} Qg5 {[%emt 0:01:52]} 31. Rxe2 {[%emt 0:03:53]} Rdc8 {[%emt 0:00:47]} 32. Qb5 {[%emt 0:01:17]} Rab8 {[%emt 0:02:37]} 33. Qd3 {[%emt 0:01:51]} Rxb2 {[%emt 0:00:27]} 34. h4 {[%emt 0:03:40]} Qxh4 {[%emt 0:01:09]} 35. Nf3 {[%emt 0:00:05]} Rc1+ {[%emt 0:00:21]} 36. Nf1 {[%emt 0:00:12]} Rxf1+ {[%emt 0:00:53]} 37. Kxf1 {[%emt 0:00:05]} Qh1+ {[%emt 0:00:23]} 38. Ng1 {[%emt 0:00:08]} Rxe2 {[%emt 0:00:20]} 39. Qxe2 {[%emt 0:00:07]} Qh4 {[%emt 0:00:31]} 40. Qe3 {[%emt 0:01:16]} Qh5 {[%emt 0:00:19]} 41. f3 {[%emt 0:01:20]} Qh4 {[%emt 0:02:48]} 42. Nh3 {[%emt 0:01:29]} Qd8 {[%emt 0:02:28]} 43. Qe4 {[%emt 0:01:18]} g6 {[%emt 0:03:00]} 44. Qf4 {[%emt 0:03:54]} Qd5 {[%emt 0:00:56]} 45. Nf2 {[%emt 0:02:02]} h5 {[%emt 0:04:13]} 46. Nh3 {[%emt 0:01:58]} Qb7 {[%emt 0:02:24]} 47. Ng5 {[%emt 0:02:27]} Qb1+ {[%emt 0:01:26]} 48. Kf2 {[%emt 0:00:12]} Qb7 {[%emt 0:00:27]} 49. Ne4 {[%emt 0:01:14]} Kg7 {[%emt 0:00:55]} 50. Qf6+ {[%emt 0:01:55]} Kg8 {[%emt 0:00:43]} 51. Qd8+ {[%emt 0:00:53]} Kg7 {[%emt 0:00:22]} 52. Nf6 {[%emt 0:01:21]} Qb2+ {[%emt 0:03:25]} 53. Kg3 {[%emt 0:00:36]} Kh6 {[%emt 0:02:20]} 54. Qh8+ {[%emt 0:00:12]} Kg5 {[%emt 0:00:28]} 55. Ne4+ {[%emt 0:00:06]} 1-0

[Event "44th Open Sitges 2018"]
[Site "Sitges"]
[Date "2018.07.27"]
[Round "7"]
[White "Volkov, Sergey"]
[Black "Kulkarni Bhakti"]
[Result "1/2-1/2"]
[ECO "D35"]
[WhiteElo "2574"]
[BlackElo "2285"]
[Annotator "ChessBase"]
[PlyCount "91"]
[EventDate "2018.07.22"]
[EventType "swiss"]
[EventCountry "ESP"]
[SourceTitle "playchess.com"]
[Source "ChessBase"]
[SourceQuality "1"]
[TimeControl "40/5400+30:1800+30"]

1. d4 {[%emt 0:00:04]} d5 {[%emt 0:00:21]} 2. c4 {[%emt 0:00:06]} e6 {[%emt 0:00:16]} 3. Nc3 {[%emt 0:00:09]} Nf6 {[%emt 0:00:29]} 4. cxd5 {[%emt 0:00:15]} exd5 {[%emt 0:00:23]} 5. Bg5 {[%emt 0:00:06]} Be7 {[%emt 0:00:20]} 6. e3 {[%emt 0:00:06]} c6 {[%emt 0:00:33]} 7. Bd3 {[%emt 0:02:12]} Nbd7 {[%emt 0:00:45]} 8. Nge2 {[%emt 0:05:10]} h6 {[%emt 0:02:56]} 9. Bh4 {[%emt 0:02:24]} Nh5 {[%emt 0:00:53]} 10. Bxe7 {[%emt 0:01:32]} Qxe7 {[%emt 0:00:06]} 11. Rb1 {[%emt 0:04:58]} a5 {[%emt 0:02:20]} 12. a3 {[%emt 0:01:51]} O-O {[%emt 0:02:28]} 13. O-O {[%emt 0:01:55]} f5 {[%emt 0:12:51]} 14. b4 {[%emt 0:01:00]} axb4 {[%emt 0:00:20]} 15. axb4 {[%emt 0:00:02]} b5 {[%emt 0:03:26]} 16. Nc1 {[%emt 0:00:49]} g6 {[%emt 0:01:24]} 17. Be2 {[%emt 0:04:53]} Ng7 {[%emt 0:07:57]} 18. Nd3 {[%emt 0:01:44]} g5 {[%emt 0:03:57]} 19. g3 {[%emt 0:01:06]} Ne8 {[%emt 0:05:02]} 20. Bf3 {[%emt 0:07:49]} Bb7 {[%emt 0:04:12]} 21. Ne2 {[%emt 0:05:19]} Nd6 {[%emt 0:01:34]} 22. Nec1 {[%emt 0:00:32]} Nc4 {[%emt 0:02:18]} 23. Nb3 {[%emt 0:00:23]} Nf6 {[%emt 0:07:40]} 24. Ra1 {[%emt 0:02:29]} Rxa1 {[%emt 0:03:00]} 25. Qxa1 {[%emt 0:00:40]} Ne4 {[%emt 0:02:11]} 26. Qc1 {[%emt 0:03:12]} Ra8 {[%emt 0:01:01]} 27. Qc2 {[%emt 0:00:57]} Bc8 {[%emt 0:01:07]} 28. Bg2 {[%emt 0:02:42]} Ra3 {[%emt 0:03:34]} 29. Ra1 {[%emt 0:00:48]} Rxa1+ {[%emt 0:01:22]} 30. Nxa1 {[%emt 0:00:07]} Qa7 {[%emt 0:00:23]} 31. Nb3 {[%emt 0:00:08]} Qa4 {[%emt 0:00:56]} 32. Bf3 {[%emt 0:03:49]} Ned2 {[%emt 0:17:13]} 33. Bd1 {[%emt 0:00:09]} Nxb3 {[%emt 0:00:06]} 34. Qxb3 {[%emt 0:00:04]} Qa1 {[%emt 0:00:21]} 35. Kg2 {[%emt 0:01:30]} f4 {[%emt 0:01:27]} 36. gxf4 {[%emt 0:01:41]} Bf5 {[%emt 0:01:34]} 37. fxg5 {[%emt 0:01:27]} hxg5 {[%emt 0:01:56]} 38. Qc2 {[%emt 0:06:18]} Be4+ {[%emt 0:01:49]} 39. Bf3 {[%emt 0:01:22]} Bxf3+ {[%emt 0:01:23]} 40. Kxf3 {[%emt 0:00:15]} Qh1+ {[%emt 0:00:13]} 41. Ke2 {[%emt 0:05:41]} Qxh2 {[%emt 0:00:47]} 42. Ne5 {[%emt 0:06:10]} Qh5+ {[%emt 0:06:07]} 43. Kd3 {[%emt 0:02:16]} Qh1 {[%emt 0:06:25]} 44. Ke2 {[%emt 0:00:51]} Qh5+ {[%emt 0:00:08]} 45. Kd3 {[%emt 0:01:46]} Qh1 {[%emt 0:00:12]} 46. Ke2 {[%emt 0:00:48]} 1/2-1/2

[Event "44th Open Sitges 2018"]
[Site "Sitges"]
[Date "2018.07.27"]
[Round "7"]
[White "Pulvett Marin, Daniel Eduardo"]
[Black "Alarcon Casellas, Rolando"]
[Result "0-1"]
[ECO "D23"]
[WhiteElo "2458"]
[BlackElo "2389"]
[Annotator "RC"]
[PlyCount "94"]
[EventDate "2018.07.22"]
[EventType "swiss"]
[EventCountry "ESP"]
[SourceTitle "playchess.com"]
[Source "ChessBase"]
[SourceQuality "1"]
[TimeControl "40/5400+30:1800+30"]

1. d4 {[%emt 19:08:04]} d5 {[%emt 0:00:06]} 2. c4 c6 {[%emt 0:00:04]} 3. Nf3 {[%emt 0:00:18]} Nf6 {[%emt 0:00:06]} 4. Qb3 {[%emt 0:00:11]} dxc4 {[%emt 0:00:13]} 5. Qxc4 {[%emt 0:00:04]} Bf5 {[%emt 0:00:04]} 6. g3 {[%emt 0:00:13]} e6 {[%emt 0:00:07]} 7. Bg2 {[%emt 0:00:06]} h6 {[%emt 0:00:09]} 8. O-O {[%emt 0:00:22]} Be7 {[%emt 0:00:04]} 9. e3 {[%emt 0:00:19]} O-O {[%emt 0:00:14]} 10. Rd1 {[%emt 0:00:14]} Nbd7 {[%emt 0:00:37]} 11. Qe2 {[%emt 0:00:21]} Bh7 {[%emt 0:07:45]} 12. Nc3 {[%emt 0:01:24]} Qb6 {[%emt 0:09:13]} 13. e4 {[%emt 0:04:14]} Rad8 {[%emt 0:12:06]} 14. Ne1 {[%emt 0:08:20]} Bb4 {[%emt 0:14:08]} 15. Nc2 {[%emt 0:18:46]} Rfe8 {[%emt 0:03:42]} 16. Bd2 {[%emt 0:22:23]} Bf8 {[%emt 0:00:55]} 17. Be3 {[%emt 0:00:07]} Qxb2 {[%emt 0:04:41]} 18. Rd3 {[%emt 0:09:41]} Qb6 {[%emt 0:01:28]} 19. d5 {[%emt 0:00:05]} Qa5 {[%emt 0:03:36]} 20. dxe6 {[%emt 0:01:54]} Rxe6 {[%emt 0:01:15]} 21. Rad1 {[%emt 0:04:17]} Rde8 {[%emt 0:02:14]} 22. Nd4 {[%emt 0:01:32]} R6e7 {[%emt 0:04:44]} 23. Nb3 {[%emt 0:00:10]} Qc7 {[%emt 0:01:38]} 24. f3 {[%emt 0:10:58]} Ne5 {[%emt 0:02:40]} 25. R3d2 {[%emt 0:03:51]} Rd7 {[%emt 0:00:25]} 26. f4 {[%emt 0:03:26]} Rxd2 {[%emt 0:00:57]} 27. Bxd2 {[%emt 0:00:01]} Ned7 {[%emt 0:02:39]} 28. e5 {[%emt 0:00:02]} Bc2 {[%emt 0:00:28]} 29. Rc1 {[%emt 0:02:40]} Bxb3 {[%emt 0:01:07]} 30. axb3 {[%emt 0:00:02]} Nc5 {[%emt 0:00:06]} 31. Be3 {[%emt 0:02:19]} Qa5 {[%emt 0:09:35]} 32. exf6 {[%emt 0:05:11]} Nxb3 {[%emt 0:00:11]} 33. Ne4 {[%emt 0:01:22]} Nxc1 {[%emt 0:01:49]} 34. Bxc1 {[%emt 0:00:04]} Qa1 {[%emt 0:03:18]} 35. Qe3 {[%emt 0:01:04]} b6 {[%emt 0:03:15]} 36. Kf1 {[%emt 0:01:03]} Bc5 {[%emt 0:02:07]} 37. Qc3 {[%emt 0:00:04]} Qa6+ {[%emt 0:00:13]} 38. Ke1 {[%emt 0:00:11]} Qa4 {[%emt 0:00:54]} 39. Qd3 {[%emt 0:00:58]} Qa1 {[%emt 0:03:11]} 40. Kd1 {[%emt 0:00:43]} Bd4 {[%emt 0:03:20]} 41. fxg7 {[%emt 0:18:03]} Bb2 {[%emt 0:04:02]} 42. Qc2 {[%emt 0:00:32]} Bxc1 {[%emt 0:00:48]} 43. Qxc1 {[%emt 0:00:05]} Qd4+ {[%emt 0:00:22]} 44. Qd2 {[%emt 0:00:06]} Rxe4 {[%emt 0:00:17]} 45. Bxe4 {[%emt 0:00:02]} Qxe4 {[%emt 0:00:09]} 46. f5 {[%emt 0:02:49]} Kxg7 {[%emt 0:00:39]} 47. f6+ {[%emt 0:01:43]} Kg6 {[%emt 0:00:17]} 0-1

[Event "44th Open Sitges 2018"]
[Site "Sitges"]
[Date "2018.07.27"]
[Round "7"]
[White "Grafl, Florian"]
[Black "Fernandez Diaz, Cristian"]
[Result "1-0"]
[ECO "A05"]
[WhiteElo "2364"]
[BlackElo "2242"]
[Annotator "NA"]
[PlyCount "59"]
[EventDate "2018.07.22"]
[EventType "swiss"]
[EventCountry "ESP"]
[SourceTitle "playchess.com"]
[Source "ChessBase"]
[SourceQuality "1"]
[TimeControl "40/5400+30:1800+30"]

1. Nf3 {[%emt 0:00:01]} Nf6 {[%emt 0:00:19]} 2. b3 {[%emt 0:00:04]} g6 {[%emt 0:00:28]} 3. Bb2 {[%emt 0:00:03]} Bg7 {[%emt 0:00:22]} 4. g3 {[%emt 0:00:04]} O-O {[%emt 0:04:35]} 5. Bg2 {[%emt 0:00:03]} d5 {[%emt 0:01:43]} 6. c4 {[%emt 0:00:07]} c5 {[%emt 0:01:29]} 7. cxd5 {[%emt 0:03:32]} Qxd5 {[%emt 0:00:33]} 8. Nc3 {[%emt 0:00:38]} Qd6 {[%emt 0:02:17]} 9. Rc1 {[%emt 0:02:30]} Qa6 {[%emt 0:15:35]} 10. O-O {[%emt 0:08:29]} Rd8 {[%emt 0:07:25]} 11. d3 {[%emt 0:46:43]} b6 {[%emt 0:09:13]} 12. a4 {[%emt 0:02:08]} Ne8 {[%emt 0:02:49]} 13. Qd2 {[%emt 0:03:05]} Bb7 {[%emt 0:05:30]} 14. Nb5 {[%emt 0:02:02]} Bxb2 {[%emt 0:01:22]} 15. Qxb2 {[%emt 0:00:03]} Nc6 {[%emt 0:03:02]} 16. Qd2 {[%emt 0:00:22]} Nb4 {[%emt 0:06:27]} 17. Qh6 {[%emt 0:06:51]} Bxf3 {[%emt 0:01:20]} 18. Bxf3 {[%emt 0:00:07]} Rac8 {[%emt 0:00:17]} 19. Rc4 {[%emt 0:01:27]} Nd5 {[%emt 0:09:24]} 20. Rh4 {[%emt 0:01:14]} Ndf6 {[%emt 0:00:13]} 21. g4 {[%emt 0:01:32]} Ng7 {[%emt 0:02:53]} 22. Nc3 {[%emt 0:00:37]} Rd4 {[%emt 0:05:53]} 23. Nd5 {[%emt 0:03:01]} Rxd5 {[%emt 0:00:29]} 24. Bxd5 {[%emt 0:00:02]} Rd8 {[%emt 0:01:12]} 25. Bc4 {[%emt 0:00:35]} Qb7 {[%emt 0:00:12]} 26. e4 {[%emt 0:00:51]} e5 {[%emt 0:06:36]} 27. f4 {[%emt 0:00:22]} Qe7 28. g5 {[%emt 0:06:14]} Nfh5 {[%emt 0:01:40]} 29. f5 {[%emt 0:00:04]} Rd4 {[%emt 0:04:50]} 30. fxg6 {[%emt 0:02:08]} 1-0